[Event "ESP chT Honor Division 2019"]
[Site "Melilla"]
[Date "2019.10.04"]
[Round "5.24"]
[White "Arabidze, Meri"]
[Black "Di Benedetto, Desiree"]
[Result "1/2-1/2"]
[ECO "D38"]
[WhiteElo "2398"]
[BlackElo "2235"]
[Annotator "NA"]
[PlyCount "99"]
[EventDate "2019.09.30"]
[EventType "team-tourn"]
[EventCountry "ESP"]
[SourceTitle "playchess.com"]
[Source "ChessBase"]
[SourceQuality "1"]
[TimeControl "40/5400+30:1800+30"]

1. d4 {[%emt 0:00:00]} Nf6 {[%emt 0:00:00]} 2. c4 {[%emt 0:00:00]} e6 {[%emt 0:00:00]} 3. Nf3 {[%emt 0:00:06]} d5 {[%emt 0:00:00]} 4. Nc3 {[%emt 0:00:15]} Bb4 {[%emt 0:00:04]} 5. Bg5 {[%emt 0:01:15]} h6 {[%emt 0:00:10]} 6. Bxf6 {[%emt 0:00:33]} Qxf6 {[%emt 0:00:10]} 7. Qa4+ {[%emt 0:00:13]} Nc6 {[%emt 0:00:09]} 8. cxd5 {[%emt 0:02:21]} exd5 {[%emt 0:02:37]} 9. e3 {[%emt 0:00:06]} O-O {[%emt 0:02:30]} 10. Be2 {[%emt 0:01:40]} Bd6 {[%emt 0:02:02]} 11. O-O {[%emt 0:00:10]} Be6 {[%emt 0:01:50]} 12. Rfc1 {[%emt 0:00:29]} a6 {[%emt 0:00:28]} 13. Qd1 {[%emt 0:00:43]} Ne7 {[%emt 0:00:58]} 14. a3 {[%emt 0:01:54]} g5 {[%emt 0:02:24]} 15. e4 {[%emt 0:11:08]} dxe4 {[%emt 0:06:02]} 16. Nxe4 Qf4 17. Nxd6 {[%emt 0:08:01]} Qxd6 {[%emt 0:01:23]} 18. Bc4 {[%emt 0:08:07]} Bxc4 {[%emt 0:05:22]} 19. Rxc4 {[%emt 0:00:17]} Ng6 {[%emt 0:06:28]} 20. Rac1 {[%emt 0:14:56]} c6 {[%emt 0:01:36]} 21. Rb4 {[%emt 0:04:00]} Rab8 {[%emt 0:05:34]} 22. g3 {[%emt 0:04:33]} Rfd8 {[%emt 0:10:03]} 23. Qb3 {[%emt 0:04:37]} b5 {[%emt 0:12:18]} 24. Qc2 {[%emt 0:06:49]} a5 {[%emt 0:10:29]} 25. Rb3 {[%emt 0:00:23]} g4 26. Ne5 {[%emt 0:00:41]} Nxe5 {[%emt 0:08:04]} 27. dxe5 Qxe5 28. Re3 {[%emt 0:02:31]} Qd5 {[%emt 0:15:18]} 29. Re4 Qg5 {[%emt 0:05:16]} 30. Rce1 {[%emt 0:03:47]} Rd6 {[%emt 0:02:03]} 31. Qc3 {[%emt 0:04:57]} Kh7 {[%emt 0:01:00]} 32. Qxa5 Rbd8 {[%emt 0:00:47]} 33. Qc7 {[%emt 0:16:18]} R8d7 {[%emt 0:00:54]} 34. Qc8 Qf5 {[%emt 0:00:15]} 35. Rf4 {[%emt 0:03:37]} Qg6 {[%emt 0:00:35]} 36. Qe8 {[%emt 0:02:51]} Kg7 {[%emt 0:00:33]} 37. Qe5+ f6 38. Qe2 {[%emt 0:00:48]} h5 {[%emt 0:00:47]} 39. Re4 {[%emt 0:00:35]} Qf7 {[%emt 0:00:44]} 40. Qc2 {[%emt 0:00:00]} f5 {[%emt 0:00:00]} 41. Re5 {[%emt 0:12:30]} Rf6 {[%emt 0:04:43]} 42. Qc1 {[%emt 0:02:54]} Kg6 {[%emt 0:04:09]} 43. Qf4 {[%emt 0:00:56]} Qb3 {[%emt 0:04:22]} 44. R5e2 {[%emt 0:00:21]} Rd1 45. Qe5 {[%emt 0:00:01]} Rxe1+ {[%emt 0:01:20]} 46. Rxe1 {[%emt 0:13:16]} Qf7 {[%emt 0:03:35]} 47. Rd1 Re6 {[%emt 0:00:05]} 48. Rd6 {[%emt 0:01:58]} Rxd6 {[%emt 0:00:18]} 49. Qxd6+ {[%emt 0:02:05]} Qf6 50. Qd2 1/2-1/2

[Event "ESP chT Honor Division 2019"]
[Site "Melilla"]
[Date "2019.10.05"]
[Round "6.2"]
[White "Ganguly, Surya Shekhar"]
[Black "Idani, Pouya"]
[Result "1/2-1/2"]
[ECO "A13"]
[WhiteElo "2658"]
[BlackElo "2568"]
[Annotator "RC"]
[PlyCount "172"]
[EventDate "2019.09.30"]
[EventType "team-tourn"]
[EventCountry "ESP"]
[SourceTitle "playchess.com"]
[Source "ChessBase"]
[SourceQuality "1"]
[TimeControl "40/5400+30:1800+30"]

1. c4 {[%emt 0:00:00]} e6 {[%emt 0:01:20]} 2. g3 {[%emt 0:00:25]} d5 {[%emt 0:00:13]} 3. Bg2 {[%emt 0:00:18]} Nf6 {[%emt 0:00:20]} 4. Nf3 {[%emt 0:00:19]} dxc4 {[%emt 0:00:41]} 5. Qa4+ {[%emt 0:00:21]} Bd7 {[%emt 0:00:07]} 6. Qxc4 {[%emt 0:00:08]} c5 {[%emt 0:00:02]} 7. d4 {[%emt 0:00:37]} Bc6 {[%emt 0:05:45]} 8. O-O {[%emt 0:16:02]} Bd5 {[%emt 0:04:08]} 9. Qd3 {[%emt 0:02:08]} cxd4 {[%emt 0:09:03]} 10. Nxd4 {[%emt 0:16:54]} Bxg2 {[%emt 0:00:09]} 11. Kxg2 {[%emt 0:00:03]} Nc6 {[%emt 0:00:36]} 12. Be3 {[%emt 0:07:57]} Qd7 {[%emt 0:10:58]} 13. Rc1 {[%emt 0:13:23]} Nb4 {[%emt 0:05:46]} 14. Qb5 {[%emt 0:01:25]} Nbd5 {[%emt 0:02:28]} 15. Bd2 {[%emt 0:00:54]} Qxb5 {[%emt 0:11:29]} 16. Nxb5 {[%emt 0:00:07]} a6 {[%emt 0:00:02]} 17. Nc7+ {[%emt 0:02:26]} Nxc7 {[%emt 0:00:14]} 18. Rxc7 {[%emt 0:00:05]} b5 {[%emt 0:00:04]} 19. a4 {[%emt 0:00:31]} b4 {[%emt 0:04:36]} 20. Be1 {[%emt 0:02:14]} Bd6 {[%emt 0:06:45]} 21. Rb7 {[%emt 0:03:04]} Nd7 {[%emt 0:06:00]} 22. Nd2 {[%emt 0:00:32]} a5 {[%emt 0:12:31]} 23. Nc4 {[%emt 0:02:46]} Bb8 {[%emt 0:01:02]} 24. Rc1 {[%emt 0:12:04]} Nc5 {[%emt 0:02:58]} 25. Nb6 {[%emt 0:01:00]} Nxb7 {[%emt 0:00:04]} 26. Rc8+ {[%emt 0:00:07]} Nd8 {[%emt 0:01:17]} 27. Nxa8 {[%emt 0:00:07]} Be5 {[%emt 0:01:58]} 28. b3 {[%emt 0:00:18]} O-O {[%emt 0:01:01]} 29. Nb6 {[%emt 0:00:30]} Bd6 {[%emt 0:02:35]} 30. Nc4 {[%emt 0:02:23]} Nb7 {[%emt 0:00:10]} 31. Rc6 {[%emt 0:00:05]} Bc5 {[%emt 0:02:03]} 32. Rc7 {[%emt 0:01:20]} Rb8 {[%emt 0:00:03]} 33. Bd2 {[%emt 0:00:21]} f6 {[%emt 0:01:48]} 34. Be3 {[%emt 0:00:37]} Bxe3 {[%emt 0:00:48]} 35. fxe3 h5 {[%emt 0:00:10]} 36. e4 {[%emt 0:01:54]} e5 {[%emt 0:00:50]} 37. Kf3 {[%emt 0:01:37]} Nd8 {[%emt 0:01:01]} 38. Nxa5 {[%emt 0:02:20]} Ne6 {[%emt 0:00:07]} 39. Nc6 {[%emt 0:00:09]} Ra8 {[%emt 0:00:08]} 40. Rb7 {[%emt 0:00:26]} Kh7 {[%emt 0:01:05]} 41. Rb8 {[%emt 0:41:41]} Rxb8 {[%emt 0:33:49]} 42. Nxb8 {[%emt 0:00:06]} Nd4+ {[%emt 0:00:02]} 43. Ke3 {[%emt 0:00:10]} Nxb3 {[%emt 0:00:04]} 44. Na6 {[%emt 0:00:06]} Kg6 {[%emt 0:01:49]} 45. Nxb4 {[%emt 0:00:47]} Kf7 {[%emt 0:00:06]} 46. Nd5 {[%emt 0:00:00]} Ke6 {[%emt 0:00:00]} 47. Nc3 {[%emt 0:00:00]} Kd6 {[%emt 0:00:00]} 48. Kd3 {[%emt 0:00:00]} Kc5 {[%emt 0:00:00]} 49. Nd5 {[%emt 0:00:00]} Kd6 {[%emt 0:00:00]} 50. Ke3 {[%emt 0:00:00]} Nc5 {[%emt 0:00:00]} 51. Nc3 {[%emt 0:00:00]} Nb3 {[%emt 0:00:00]} 52. h4 {[%emt 0:00:00]} Kc5 {[%emt 0:00:00]} 53. Nd5 {[%emt 0:00:00]} Kd6 {[%emt 0:00:00]} 54. Nb6 {[%emt 0:00:00]} Kc6 {[%emt 0:00:00]} 55. Nc8 {[%emt 0:00:00]} Kd7 {[%emt 0:00:00]} 56. Nb6+ {[%emt 0:00:00]} Kc6 {[%emt 0:00:00]} 57. Nc4 {[%emt 0:00:00]} Kc5 {[%emt 0:00:00]} 58. a5 {[%emt 0:00:00]} Nd4 {[%emt 0:00:00]} 59. a6 {[%emt 0:00:00]} Nc6 {[%emt 0:00:00]} 60. Nb2 {[%emt 0:00:00]} Kb5 {[%emt 0:00:00]} 61. Nd3 {[%emt 0:00:00]} Kxa6 {[%emt 0:01:12]} 62. Nc5+ {[%emt 0:00:00]} Kb6 {[%emt 0:01:40]} 63. Ne6 {[%emt 0:00:00]} g6 {[%emt 0:00:03]} 64. Nf8 {[%emt 0:00:00]} Ne7 {[%emt 0:00:34]} 65. Nd7+ {[%emt 0:00:00]} Kc6 {[%emt 0:00:04]} 66. Nxf6 {[%emt 0:00:00]} Kd6 {[%emt 0:00:08]} 67. Nh7 {[%emt 0:00:00]} Ke6 {[%emt 0:01:08]} 68. Ng5+ {[%emt 0:00:00]} Kd6 {[%emt 0:01:09]} 69. Kd3 {[%emt 0:00:00]} Ng8 {[%emt 0:00:21]} 70. Nh7 {[%emt 0:00:00]} Ke7 {[%emt 0:02:35]} 71. Kc4 {[%emt 0:00:00]} Nh6 {[%emt 0:00:04]} 72. Kc5 {[%emt 0:02:51]} Ng4 {[%emt 0:00:34]} 73. Kd5 {[%emt 0:00:06]} Kf7 {[%emt 0:00:04]} 74. Kd6 {[%emt 0:01:03]} Kg7 {[%emt 0:00:03]} 75. Ng5 {[%emt 0:00:06]} Kf6 {[%emt 0:00:03]} 76. Ne6 {[%emt 0:02:38]} Ne3 {[%emt 0:00:56]} 77. Nc7 {[%emt 0:03:06]} Nc4+ {[%emt 0:01:34]} 78. Kd5 {[%emt 0:01:44]} Ne3+ {[%emt 0:00:28]} 79. Kc5 {[%emt 0:01:24]} Nf1 {[%emt 0:00:06]} 80. Kd6 {[%emt 0:00:05]} Nxg3 {[%emt 0:00:04]} 81. Nd5+ {[%emt 0:00:05]} Kf7 {[%emt 0:01:40]} 82. Kxe5 {[%emt 0:00:02]} Nxe2 {[%emt 0:00:04]} 83. Kd6 {[%emt 0:00:12]} g5 {[%emt 0:00:51]} 84. e5 {[%emt 0:00:13]} Nd4 {[%emt 0:00:10]} 85. hxg5 {[%emt 0:00:05]} Kg6 {[%emt 0:00:36]} 86. Ne3 {[%emt 0:01:46]} h4 {[%emt 0:00:59]} 1/2-1/2

[Event "ESP chT Honor Division 2019"]
[Site "Melilla"]
[Date "2019.10.05"]
[Round "6.3"]
[White "Pap, Misa"]
[Black "Santos Ruiz, Miguel"]
[Result "0-1"]
[ECO "B22"]
[WhiteElo "2432"]
[BlackElo "2560"]
[Annotator "ChessBase"]
[PlyCount "118"]
[EventDate "2019.09.30"]
[EventType "team-tourn"]
[EventCountry "ESP"]
[SourceTitle "playchess.com"]
[Source "ChessBase"]
[SourceQuality "1"]
[TimeControl "40/5400+30:1800+30"]

1. e4 {[%emt 0:00:00]} c5 {[%emt 0:00:00]} 2. c3 {[%emt 0:00:00]} Nf6 {[%emt 0:00:00]} 3. e5 {[%emt 0:00:00]} Nd5 {[%emt 0:00:00]} 4. Nf3 {[%emt 0:00:21]} d6 {[%emt 0:00:00]} 5. d4 {[%emt 0:00:10]} cxd4 {[%emt 0:00:08]} 6. Bc4 {[%emt 0:00:34]} Nb6 {[%emt 0:00:08]} 7. Bb3 {[%emt 0:00:05]} Nc6 {[%emt 0:00:05]} 8. exd6 {[%emt 0:07:42]} Qxd6 {[%emt 0:00:22]} 9. O-O {[%emt 0:00:12]} Be6 {[%emt 0:00:13]} 10. Na3 {[%emt 0:01:26]} dxc3 {[%emt 0:00:39]} 11. Nb5 {[%emt 0:00:29]} Qxd1 {[%emt 0:00:09]} 12. Rxd1 {[%emt 0:00:04]} Rc8 {[%emt 0:00:12]} 13. Bxe6 {[%emt 0:00:06]} fxe6 {[%emt 0:00:03]} 14. bxc3 {[%emt 0:01:04]} Nc4 {[%emt 0:00:05]} 15. Ng5 {[%emt 0:02:44]} e5 {[%emt 0:00:28]} 16. a4 {[%emt 0:13:05]} h6 {[%emt 0:11:36]} 17. Ne4 {[%emt 0:04:24]} b6 {[%emt 0:01:15]} 18. h4 {[%emt 0:11:54]} g6 {[%emt 0:09:57]} 19. Rd3 {[%emt 0:14:28]} Bg7 {[%emt 0:03:34]} 20. Na3 {[%emt 0:12:13]} N6a5 {[%emt 0:12:48]} 21. Nxc4 {[%emt 0:01:23]} Nxc4 {[%emt 0:03:17]} 22. Kf1 {[%emt 0:01:05]} Rc7 {[%emt 0:05:10]} 23. Ke2 {[%emt 0:02:20]} Kf7 {[%emt 0:02:16]} 24. Bd2 {[%emt 0:09:49]} Rhc8 {[%emt 0:01:45]} 25. Be1 {[%emt 0:04:41]} Ke6 {[%emt 0:12:33]} 26. f3 {[%emt 0:00:39]} Nd6 {[%emt 0:12:00]} 27. a5 {[%emt 0:00:08]} Nxe4 {[%emt 0:01:56]} 28. fxe4 {[%emt 0:00:01]} Rc4 {[%emt 0:00:05]} 29. Re3 {[%emt 0:03:32]} b5 {[%emt 0:02:56]} 30. a6 {[%emt 0:00:00]} Ra4 {[%emt 0:00:48]} 31. Rb1 {[%emt 0:00:27]} Rb8 {[%emt 0:04:50]} 32. Bd2 {[%emt 0:02:20]} h5 {[%emt 0:01:54]} 33. Rg3 {[%emt 0:00:15]} Rxe4+ {[%emt 0:00:24]} 34. Kd3 {[%emt 0:01:01]} Rxh4 {[%emt 0:00:26]} 35. Rxg6+ {[%emt 0:00:01]} Bf6 {[%emt 0:00:06]} 36. Be3 Ra4 {[%emt 0:04:30]} 37. Bxa7 {[%emt 0:01:08]} Rd8+ {[%emt 0:00:13]} 38. Kc2 {[%emt 0:03:06]} Rxa6 {[%emt 0:02:18]} 39. Be3 {[%emt 0:00:25]} Ra2+ {[%emt 0:01:41]} 40. Kb3 {[%emt 0:00:15]} Re2 {[%emt 0:00:09]} 41. Bc5 {[%emt 0:32:21]} Kf5 {[%emt 0:34:01]} 42. Rg3 {[%emt 0:00:03]} Rdd2 {[%emt 0:00:56]} 43. Rh3 {[%emt 0:03:00]} Kg4 {[%emt 0:01:27]} 44. Re3 {[%emt 0:01:06]} Rxe3 {[%emt 0:02:54]} 45. Bxe3 {[%emt 0:00:00]} Rxg2 {[%emt 0:00:00]} 46. Kb4 {[%emt 0:00:00]} e4 {[%emt 0:00:00]} 47. Bd4 {[%emt 0:00:00]} Bxd4 {[%emt 0:00:00]} 48. cxd4 {[%emt 0:00:00]} h4 {[%emt 0:00:00]} 49. Kxb5 {[%emt 0:00:00]} h3 {[%emt 0:00:00]} 50. Kc6 {[%emt 0:00:00]} h2 {[%emt 0:00:00]} 51. Re1 {[%emt 0:00:00]} e3 {[%emt 0:00:00]} 52. Rxe3 {[%emt 0:00:00]} h1=Q {[%emt 0:00:00]} 53. Re4+ {[%emt 0:00:00]} Kh5 {[%emt 0:00:00]} 54. Rxe7 {[%emt 0:00:00]} Rg7+ {[%emt 0:00:00]} 55. Kd6 {[%emt 0:00:00]} Rxe7 {[%emt 0:00:00]} 56. Kxe7 {[%emt 0:00:00]} Qd5 {[%emt 0:00:00]} 57. Kf6 {[%emt 0:00:00]} Kh6 {[%emt 0:00:00]} 58. Ke7 {[%emt 0:00:00]} Kg6 {[%emt 0:00:00]} 59. Ke8 {[%emt 0:00:00]} Kf6 {[%emt 0:00:00]} 0-1

[Event "ESP chT Honor Division 2019"]
[Site "Melilla"]
[Date "2019.10.05"]
[Round "6.4"]
[White "Tejedor Fuente, Enrique"]
[Black "Suarez Real, Alberto"]
[Result "1-0"]
[ECO "A00"]
[WhiteElo "2453"]
[BlackElo "2460"]
[Annotator "ChessBase"]
[PlyCount "79"]
[EventDate "2019.09.30"]
[EventType "team-tourn"]
[EventCountry "ESP"]
[SourceTitle "playchess.com"]
[Source "ChessBase"]
[SourceQuality "1"]
[TimeControl "40/5400+30:1800+30"]

1. Nc3 {[%emt 0:00:00]} c5 {[%emt 0:05:07]} 2. Nf3 {[%emt 0:00:00]} Nc6 {[%emt 0:02:53]} 3. d4 {[%emt 0:00:19]} cxd4 {[%emt 0:00:36]} 4. Nxd4 {[%emt 0:00:05]} Nf6 {[%emt 0:04:45]} 5. Bg5 {[%emt 0:00:43]} Qa5 {[%emt 0:15:19]} 6. Bxf6 {[%emt 0:00:56]} gxf6 {[%emt 0:00:04]} 7. Nb3 {[%emt 0:02:35]} Qe5 {[%emt 0:05:36]} 8. Qd2 {[%emt 0:06:06]} e6 {[%emt 0:03:11]} 9. f4 {[%emt 0:00:09]} Qc7 {[%emt 0:07:01]} 10. e4 {[%emt 0:04:06]} Bb4 {[%emt 0:06:28]} 11. g3 {[%emt 0:00:02]} a6 {[%emt 0:03:35]} 12. a3 {[%emt 0:00:20]} Be7 {[%emt 0:00:19]} 13. O-O-O {[%emt 0:04:04]} d6 {[%emt 0:07:51]} 14. Bh3 {[%emt 0:01:04]} Bd7 {[%emt 0:01:50]} 15. f5 {[%emt 0:01:18]} O-O-O {[%emt 0:09:05]} 16. Qh6 {[%emt 0:01:44]} Rdg8 {[%emt 0:01:29]} 17. Ne2 {[%emt 0:00:18]} Na5 {[%emt 0:01:09]} 18. Nxa5 {[%emt 0:03:30]} Qxa5 {[%emt 0:00:03]} 19. Nf4 {[%emt 0:01:07]} Qe5 {[%emt 0:05:36]} 20. Qh5 {[%emt 0:11:06]} Rg7 {[%emt 0:00:25]} 21. Rhe1 {[%emt 0:16:05]} Kb8 {[%emt 0:01:26]} 22. Qf3 {[%emt 0:02:37]} Re8 {[%emt 0:14:03]} 23. Re3 {[%emt 0:01:22]} Rc8 {[%emt 0:01:05]} 24. Kb1 {[%emt 0:00:20]} Rc6 {[%emt 0:02:14]} 25. Rb3 {[%emt 0:03:07]} Rg8 {[%emt 0:00:27]} 26. Nd5 {[%emt 0:01:26]} Bd8 {[%emt 0:00:35]} 27. Nb4 {[%emt 0:00:01]} Rb6 {[%emt 0:00:24]} 28. Qh5 {[%emt 0:00:01]} Rf8 {[%emt 0:00:41]} 29. Qh6 {[%emt 0:00:30]} Be7 {[%emt 0:00:34]} 30. fxe6 {[%emt 0:02:10]} fxe6 {[%emt 0:00:02]} 31. Qxh7 {[%emt 0:00:07]} Re8 {[%emt 0:00:49]} 32. Nd3 {[%emt 0:00:45]} Qa5 {[%emt 0:00:08]} 33. Rxb6 {[%emt 0:02:25]} Qxb6 {[%emt 0:00:01]} 34. Qf7 {[%emt 0:00:03]} f5 {[%emt 0:01:35]} 35. exf5 {[%emt 0:00:20]} exf5 {[%emt 0:00:25]} 36. Re1 {[%emt 0:01:19]} Qd8 {[%emt 0:00:22]} 37. Bxf5 {[%emt 0:00:28]} Bb5 {[%emt 0:00:42]} 38. Bg6 {[%emt 0:01:01]} d5 {[%emt 0:00:34]} 39. Qh7 {[%emt 0:00:31]} Bxd3 {[%emt 0:00:29]} 40. cxd3 {[%emt 0:00:46]} 1-0

[Event "ESP chT Honor Division 2019"]
[Site "Melilla"]
[Date "2019.10.05"]
[Round "6.5"]
[White "Ortega Hermida, Daniel"]
[Black "Ubilava, Elizbar"]
[Result "1/2-1/2"]
[ECO "B90"]
[WhiteElo "2341"]
[BlackElo "2481"]
[Annotator "ChessBase"]
[PlyCount "60"]
[EventDate "2019.09.30"]
[EventType "team-tourn"]
[EventCountry "ESP"]
[SourceTitle "playchess.com"]
[Source "ChessBase"]
[SourceQuality "1"]
[TimeControl "40/5400+30:1800+30"]

1. e4 {[%emt 0:00:00]} c5 {[%emt 0:00:00]} 2. Nf3 {[%emt 0:00:04]} d6 {[%emt 0:00:00]} 3. d4 {[%emt 0:00:20]} cxd4 {[%emt 0:00:00]} 4. Nxd4 {[%emt 0:00:06]} Nf6 {[%emt 0:00:01]} 5. Nc3 {[%emt 0:00:07]} a6 {[%emt 0:00:15]} 6. Be3 {[%emt 0:01:07]} e6 {[%emt 0:00:20]} 7. f3 {[%emt 0:01:39]} h5 {[%emt 0:00:21]} 8. Qd2 {[%emt 0:14:27]} Be7 {[%emt 0:00:16]} 9. Bc4 {[%emt 0:10:06]} Nc6 {[%emt 0:03:44]} 10. Nxc6 {[%emt 0:11:26]} bxc6 {[%emt 0:00:19]} 11. O-O-O {[%emt 0:00:03]} d5 {[%emt 0:09:26]} 12. Bb3 {[%emt 0:00:29]} Bb7 {[%emt 0:04:17]} 13. Rhe1 {[%emt 0:06:52]} O-O {[%emt 0:04:29]} 14. Qf2 {[%emt 0:05:14]} Nd7 {[%emt 0:06:17]} 15. a3 {[%emt 0:12:27]} Qc7 {[%emt 0:04:09]} 16. Kb1 {[%emt 0:04:29]} Rac8 {[%emt 0:05:16]} 17. f4 {[%emt 0:07:53]} Nf6 {[%emt 0:04:28]} 18. h3 {[%emt 0:03:59]} c5 {[%emt 0:06:36]} 19. exd5 {[%emt 0:00:46]} c4 {[%emt 0:00:10]} 20. Bb6 {[%emt 0:01:45]} Bc5 {[%emt 0:00:46]} 21. Bxc5 {[%emt 0:04:57]} Qxc5 {[%emt 0:00:24]} 22. Qxc5 {[%emt 0:00:05]} Rxc5 {[%emt 0:00:07]} 23. Ba2 {[%emt 0:00:28]} Bxd5 {[%emt 0:11:06]} 24. g3 {[%emt 0:00:20]} Rb8 {[%emt 0:02:11]} 25. Rd4 {[%emt 0:00:48]} g6 {[%emt 0:00:48]} 26. Re5 {[%emt 0:00:56]} Rc7 {[%emt 0:01:30]} 27. Kc1 {[%emt 0:00:34]} Kg7 {[%emt 0:01:59]} 28. Re3 {[%emt 0:01:04]} Rc5 {[%emt 0:00:08]} 29. Re5 {[%emt 0:00:04]} Rc7 {[%emt 0:00:08]} 30. Re3 {[%emt 0:00:02]} Rc5 1/2-1/2

[Event "ESP chT Honor Division 2019"]
[Site "Melilla"]
[Date "2019.10.05"]
[Round "6.8"]
[White "Vazquez Igarza, Renier"]
[Black "Naiditsch, Arkadij"]
[Result "1-0"]
[ECO "A37"]
[WhiteElo "2557"]
[BlackElo "2643"]
[Annotator "ChessBase"]
[PlyCount "49"]
[EventDate "2019.09.30"]
[EventType "team-tourn"]
[EventCountry "ESP"]
[SourceTitle "playchess.com"]
[Source "ChessBase"]
[SourceQuality "1"]
[TimeControl "40/5400+30:1800+30"]

1. Nf3 {[%emt 0:00:00]} c5 {[%emt 0:00:10]} 2. c4 {[%emt 0:00:09]} Nc6 {[%emt 0:00:11]} 3. Nc3 {[%emt 0:01:11]} g6 {[%emt 0:00:10]} 4. g3 {[%emt 0:01:02]} Bg7 {[%emt 0:00:09]} 5. Bg2 {[%emt 0:00:02]} d6 {[%emt 0:01:45]} 6. O-O {[%emt 0:01:41]} h5 {[%emt 0:00:58]} 7. e3 {[%emt 0:00:32]} Nh6 {[%emt 0:09:34]} 8. a3 {[%emt 0:07:51]} Bg4 {[%emt 0:10:09]} 9. h3 {[%emt 0:04:49]} Bd7 {[%emt 0:05:07]} 10. d4 {[%emt 0:01:07]} Qc8 {[%emt 0:01:07]} 11. Nd5 {[%emt 0:07:46]} Kf8 {[%emt 0:08:27]} 12. dxc5 {[%emt 0:15:44]} Bxh3 {[%emt 0:09:57]} 13. cxd6 {[%emt 0:01:28]} exd6 {[%emt 0:00:11]} 14. Nf4 {[%emt 0:05:50]} Bxg2 {[%emt 0:00:14]} 15. Kxg2 {[%emt 0:04:39]} Nf5 {[%emt 0:04:48]} 16. e4 {[%emt 0:04:00]} Nfd4 {[%emt 0:01:55]} 17. Nxd4 {[%emt 0:00:24]} Bxd4 {[%emt 0:00:07]} 18. Be3 {[%emt 0:11:36]} Bxb2 {[%emt 0:04:58]} 19. Qxd6+ {[%emt 0:00:10]} Kg7 {[%emt 0:00:12]} 20. Rad1 {[%emt 0:00:10]} Re8 {[%emt 0:10:21]} 21. Rh1 {[%emt 0:04:56]} Kg8 {[%emt 0:02:32]} 22. Nxg6 {[%emt 0:03:32]} Qg4 {[%emt 0:01:07]} 23. Nf4 {[%emt 0:10:16]} Ne5 {[%emt 0:11:02]} 24. Rxh5 {[%emt 0:02:10]} Re6 {[%emt 0:00:27]} 25. Qd8+ {[%emt 0:01:57]} 1-0

[Event "ESP chT Honor Division 2019"]
[Site "Melilla"]
[Date "2019.10.05"]
[Round "6.9"]
[White "Paehtz, Elisabeth"]
[Black "Quispe Arteaga, Gabriel"]
[Result "1-0"]
[ECO "B31"]
[WhiteElo "2489"]
[BlackElo "2404"]
[Annotator "ChessBase"]
[PlyCount "63"]
[EventDate "2019.09.30"]
[EventType "team-tourn"]
[EventCountry "ESP"]
[SourceTitle "playchess.com"]
[Source "ChessBase"]
[SourceQuality "1"]
[TimeControl "40/5400+30:1800+30"]

1. e4 {[%emt 0:00:00]} c5 {[%emt 0:00:06]} 2. Nf3 {[%emt 0:00:00]} Nc6 {[%emt 0:00:04]} 3. Bb5 {[%emt 0:00:00]} g6 {[%emt 0:00:28]} 4. Bxc6 {[%emt 0:00:00]} dxc6 {[%emt 0:00:06]} 5. d3 {[%emt 0:00:00]} Bg7 {[%emt 0:00:31]} 6. Nc3 {[%emt 0:00:14]} Bg4 {[%emt 0:04:31]} 7. h3 {[%emt 0:00:08]} Bxf3 {[%emt 0:00:17]} 8. Qxf3 {[%emt 0:00:03]} Nf6 {[%emt 0:00:35]} 9. Qe2 {[%emt 0:01:38]} O-O {[%emt 0:05:35]} 10. Be3 {[%emt 0:01:44]} Qb6 {[%emt 0:01:24]} 11. O-O {[%emt 0:03:57]} Nd7 {[%emt 0:03:39]} 12. Rab1 {[%emt 0:01:07]} Bd4 {[%emt 0:08:50]} 13. Bh6 {[%emt 0:02:13]} Rfe8 {[%emt 0:11:22]} 14. Kh1 {[%emt 0:01:11]} e6 {[%emt 0:02:00]} 15. Nd1 {[%emt 0:07:23]} f5 {[%emt 0:06:50]} 16. Ne3 {[%emt 0:16:23]} Ne5 {[%emt 0:08:58]} 17. Bf4 {[%emt 0:03:57]} Bxe3 {[%emt 0:06:36]} 18. Bxe3 {[%emt 0:00:53]} Qa5 {[%emt 0:04:15]} 19. Bd2 {[%emt 0:01:51]} Qd8 {[%emt 0:04:00]} 20. f4 {[%emt 0:04:15]} Nd7 {[%emt 0:00:30]} 21. Bc3 {[%emt 0:01:21]} Kf7 {[%emt 0:01:09]} 22. Rbe1 {[%emt 0:01:21]} Qh4 {[%emt 0:02:42]} 23. Rf3 {[%emt 0:03:02]} Nf6 {[%emt 0:02:20]} 24. Kg1 {[%emt 0:05:09]} Rad8 {[%emt 0:01:18]} 25. b3 {[%emt 0:03:26]} b6 {[%emt 0:00:13]} 26. Re3 {[%emt 0:10:33]} Nh5 {[%emt 0:03:35]} 27. Be5 {[%emt 0:00:30]} Nf6 {[%emt 0:00:30]} 28. a4 {[%emt 0:09:18]} Rd7 {[%emt 0:11:38]} 29. Bc3 {[%emt 0:02:01]} Nh5 {[%emt 0:00:30]} 30. exf5 gxf5 {[%emt 0:00:15]} 31. Rxe6 {[%emt 0:03:21]} Rg8 {[%emt 0:05:34]} 32. Rh6 {[%emt 0:01:44] Ke8} 1-0

[Event "ESP chT Honor Division 2019"]
[Site "Melilla"]
[Date "2019.10.05"]
[Round "6.10"]
[White "Suarez Uriel, Adrian"]
[Black "Franco Alonso, Alejandro"]
[Result "1-0"]
[ECO "C42"]
[WhiteElo "2392"]
[BlackElo "2384"]
[Annotator "ChessBase"]
[PlyCount "65"]
[EventDate "2019.09.30"]
[EventType "team-tourn"]
[EventCountry "ESP"]
[SourceTitle "playchess.com"]
[Source "ChessBase"]
[SourceQuality "1"]
[TimeControl "40/5400+30:1800+30"]

1. e4 {[%emt 0:00:00]} e5 {[%emt 0:00:14]} 2. Nf3 Nf6 {[%emt 0:00:06]} 3. d3 {[%emt 0:00:00]} Nc6 4. Be2 {[%emt 0:01:10]} Bc5 {[%emt 0:04:08]} 5. O-O d6 {[%emt 0:00:20]} 6. c3 {[%emt 0:01:03]} a6 7. Re1 {[%emt 0:16:22]} Ba7 {[%emt 0:02:33]} 8. Nbd2 O-O 9. h3 {[%emt 0:04:43]} Ne7 {[%emt 0:05:35]} 10. Nf1 {[%emt 0:01:26]} Ng6 {[%emt 0:00:26]} 11. Ng3 {[%emt 0:12:07]} Re8 {[%emt 0:03:48]} 12. Bf1 {[%emt 0:09:28]} h6 13. d4 {[%emt 0:02:28]} Bd7 {[%emt 0:10:13]} 14. Qc2 {[%emt 0:15:39]} Nh7 15. Be3 Ng5 {[%emt 0:25:36]} 16. Nxg5 {[%emt 0:02:35]} hxg5 {[%emt 0:00:05]} 17. Qd2 g4 {[%emt 0:08:21]} 18. hxg4 {[%emt 0:03:49]} Bxg4 {[%emt 0:00:12]} 19. Bg5 {[%emt 0:05:27]} Qd7 {[%emt 0:13:11]} 20. f3 {[%emt 0:08:35]} f6 21. fxg4 Qxg4 {[%emt 0:00:47]} 22. Bc4+ {[%emt 0:00:32]} Kh7 23. Nf5 fxg5 {[%emt 0:02:49]} 24. Re3 {[%emt 0:11:01]} exd4 {[%emt 0:00:28]} 25. cxd4 {[%emt 0:03:37]} Rxe4 {[%emt 0:15:55]} 26. Rxe4 {[%emt 0:00:30]} Qxf5 {[%emt 0:00:08]} 27. Bd3 {[%emt 0:00:00]} Qf6 {[%emt 0:02:09]} 28. Rf1 {[%emt 0:00:20]} Bxd4+ {[%emt 0:02:02]} 29. Kh1 {[%emt 0:01:56]} Rh8 {[%emt 0:02:55]} 30. g3 {[%emt 0:00:30]} Kg8+ {[%emt 0:00:30]} 31. Kg2 {[%emt 0:00:02]} Nf4+ {[%emt 0:01:49]} 32. gxf4 {[%emt 0:00:12]} gxf4 33. Re8+ {[%emt 0:01:25]} 1-0